bitfinex/quotes_ETHUSD_20260207
["timestamp","ask_amount","ask_price","bid_price","bid_amount"]
[1770449161330,0.002,2018.8,2017.2,1.24034166]
[1770449161733,0.002,2018.8,2017.4,0.05588493]
[1770449162230,0.002,2018.8,2017.7,0.05588493]
[1770449162448,0.002,2018.8,2017.7,8.03075601]
[1770449162755,0.002,2018.8,2017.8,1.23897313]
[1770449162954,0.002,2019.0,2018.1,0.05588493]
[1770449163154,1.56845845,2020.2,2018.4,0.05588493]
[1770449163559,0.33091518,2020.2,2018.8,0.05588493]
[1770449163773,1.56843113,2020.2,2018.5,0.1024]
[1770449163988,1.56843113,2020.2,2018.4,0.05588493]
[1770449164184,0.33091518,2020.2,2018.7,0.05588493]
[1770449164378,1.56841751,2020.2,2018.1,0.05588493]
[1770449164532,3.0051611,2020.1,2018.0,0.05588493]
[1770449164732,1.23762376,2020.0,2018.1,9.21366003]
[1770449165149,22.74275882,2019.9,2018.1,9.21366003]
[1770449165348,0.15828493,2019.8,2018.1,9.21366003]
[1770449165560,0.1024,2019.8,2018.1,1.23878895]
[1770449165734,0.2335703,2019.7,2018.2,0.61939448]
[1770449165932,0.1024,2019.4,2017.9,1.86398534]
[1770449166169,2.46975168,2019.8,2018.0,1.23880779]
[1770449166377,0.1024,2019.7,2018.0,1.29469272]
[1770449166535,0.3359703,2019.7,2018.0,1.29469272]
[1770449166737,0.1024,2019.3,2017.8,1.23897313]
[1770449167079,0.62923574,2019.3,2018.0,0.05588493]
[1770449167232,0.1024,2019.9,2018.3,0.05588493]
[1770449167646,4.14036554,2020.1,2018.3,0.05588493]
[1770449167853,4.14036554,2020.1,2018.6,0.05588493]
[1770449168139,0.1024,2020.0,2018.7,0.05588493]
[1770449168343,4.07139341,2020.0,2018.7,0.05588493]
[1770449168663,0.1024,2020.0,2018.7,0.05588493]
[1770449168865,0.33091518,2020.2,2019.0,0.05588493]
[1770449169078,1.23914301,2020.8,2019.6,0.05588493]
[1770449169380,1.23914301,2020.8,2018.7,27.51851113]
[1770449169381,7.62662977,2020.0,2017.9,0.67539214]
[1770449169576,0.2335703,2019.5,2018.0,1.238812]
[1770449169762,0.1024,2019.2,2017.9,0.61950721]
[1770449169961,0.1024,2019.2,2017.8,0.05588493]
[1770449170275,0.3359703,2018.9,2017.3,0.05588493]
[1770449170476,0.3359703,2018.9,2017.7,1.2389909]
[1770449170477,2.38691588,2018.9,2017.7,1.2389909]
[1770449170640,0.2335703,2019.2,2017.8,1.23897192]
[1770449170834,1.23815394,2019.2,2017.6,1.23905137]
[1770449171049,1.23815394,2019.2,2017.7,0.05588493]
[1770449171265,4.95238463,2019.3,2017.7,0.05588493]
[1770449171266,1.34049587,2019.3,2017.7,0.05588493]
[1770449171453,1.34049587,2019.3,2018.0,0.05588493]
[1770449171662,0.65260893,2019.3,2018.0,0.05588493]
[1770449171859,0.1024,2019.5,2018.0,0.05588493]
[1770449172365,8.14803521,2019.3,2017.6,1.23905137]
[1770449172567,0.1024,2018.7,2017.2,0.001]
[1770449172770,0.3359703,2018.6,2017.2,0.001]
[1770449172941,1.01213474,2018.6,2017.2,1.37562479]
[1770449173541,23.52132326,2018.6,2017.2,0.001]
[1770449173939,8.04563521,2018.5,2017.2,0.001]
[1770449174244,0.2335703,2018.1,2017.2,0.001]
[1770449174953,0.2335703,2017.9,2017.2,0.001]
[1770449176550,8.04563521,2017.7,2016.7,0.001]
[1770449176767,5.237,2018.5,2017.6,7.49135712]
[1770449176962,1.23780759,2019.7,2017.7,9.95733505]
[1770449177271,1.23780759,2019.7,2017.4,4.95613817]
[1770449177272,8.04563521,2019.3,2017.1,8.73071773]
[1770449177474,8.14803521,2018.9,2016.6,7.49135712]
[1770449177643,3.90702385,2019.2,2016.3,0.15828493]
[1770449177644,0.2335703,2018.1,2016.7,0.05688493]
[1770449177845,5.237,2018.0,2017.0,0.05588493]
[1770449178045,0.05588493,2018.5,2016.9,1.23951908]
[1770449178245,0.05588493,2018.5,2016.7,0.001]
[1770449178246,0.1024,2018.4,2016.8,4.95827883]
[1770449178572,0.69847661,2018.4,2017.0,1.239457]
[1770449178872,0.69847661,2018.4,2016.9,0.49592788]
[1770449178873,6.47571546,2018.3,2016.9,0.49592788]
[1770449179066,0.1024,2018.2,2016.7,0.001]
[1770449179259,0.05588493,2018.1,2016.7,0.001]
[1770449179478,5.29288493,2018.1,2016.7,0.001]
[1770449179702,0.1024,2018.0,2016.7,0.001]
[1770449179842,5.237,2017.9,2016.7,0.001]
[1770449180971,0.1024,2017.6,2016.7,0.001]
[1770449181477,5.29288493,2017.5,2016.7,0.001]
[1770449181675,5.237,2017.5,2016.7,0.001]
[1770449182773,13.00046089,2018.3,2016.7,0.001]
[1770449182774,1.23872757,2018.2,2016.7,0.001]
[1770449182946,5.237,2018.1,2016.7,0.001]
[1770449183145,5.237,2018.1,2016.7,7.49235712]
[1770449183349,5.237,2018.1,2016.9,0.05588493]
[1770449184062,0.33191082,2018.6,2016.9,7.54724205]
[1770449184276,1.57039634,2018.6,2016.8,0.75482421]
[1770449184492,0.28945523,2018.5,2016.7,0.001]
[1770449184657,0.2335703,2018.5,2016.7,0.001]
[1770449184856,0.33191082,2018.6,2016.7,1.24064893]
[1770449185205,0.33191082,2018.6,2017.5,7.54724205]
[1770449185397,8.04763521,2019.9,2017.9,7.49135712]
[1770449185546,8.04763521,2019.9,2017.5,0.05588493]
[1770449185547,8.04563521,2019.7,2018.0,3.00564306]
[1770449185748,0.05588493,2019.5,2017.6,7.49135712]
[1770449185984,0.05588493,2019.5,2017.5,0.15828493]
[1770449185985,1.23971818,2019.9,2017.9,22.50918852]
[1770449186289,1.23971818,2019.9,2017.8,7.54724205]
[1770449186290,8.10152014,2019.8,2017.8,0.05588493]
[1770449186590,0.05588493,2019.6,2017.5,0.05588493]
[1770449186758,0.1024,2019.7,2017.6,22.50918852]
[1770449186963,1.23793018,2019.5,2017.8,1.23897313]
[1770449187697,0.15828493,2019.4,2017.7,3.49550952]
[1770449188003,0.15828493,2019.4,2017.7,2.25650735]
[1770449188004,0.28945523,2019.1,2017.7,2.25650735]
[1770449188205,0.002,2019.7,2018.1,0.05588493]
[1770449188494,0.002,2019.7,2018.5,7.49135712]
[1770449188706,0.002,2019.7,2018.7,0.05588493]
[1770449189015,0.002,2019.7,2018.6,1.23848211]
[1770449189170,0.002,2019.7,2018.8,22.50918852]
[1770449189509,0.002,2019.7,2019.0,0.05588493]
[1770449189861,0.002,2019.7,2019.3,0.05588493]
[1770449190499,0.001,2019.7,2019.0,0.05588493]
[1770449190697,0.00100299,2019.9,2019.0,0.05588493]
[1770449190995,0.3313358,2020.3,2019.1,1.23817542]
[1770449191197,0.3313358,2020.3,2019.3,0.05588493]
[1770449191501,0.002,2020.8,2019.6,0.05588493]
[1770449191707,0.002,2020.8,2019.7,0.05588493]
[1770449191862,0.002,2020.8,2019.4,30.00054564]
[1770449192061,1.23917033,2020.8,2019.5,1.6547625]
[1770449192383,1.23917033,2020.8,2019.1,1.23817542]
[1770449192911,0.2335703,2020.7,2019.1,1.23817542]
[1770449193067,1.23725626,2020.6,2019.1,1.23817542]
[1770449193517,1.23721189,2020.7,2019.1,1.23817542]
[1770449194403,1.23917182,2020.8,2019.3,0.05588493]
[1770449194718,1.23917182,2020.8,2019.1,1.23817542]
[1770449194904,1.23917182,2020.8,2019.2,0.91965202]
[1770449195104,0.1044,2020.8,2019.2,0.91965202]
[1770449195307,0.2335703,2020.7,2019.0,1.29412147]
[1770449195606,0.2335703,2020.7,2019.2,1.23811281]
[1770449195804,7.88881225,2020.5,2018.7,1.23841417]
[1770449196011,0.2335703,2020.1,2018.3,5.01048415]
[1770449196219,0.2335703,2020.1,2018.3,1.29451241]
[1770449196504,7.88881225,2019.8,2018.4,0.62493601]
[1770449196706,7.88881225,2019.8,2018.2,1.2386922]
[1770449196874,0.2335703,2019.6,2018.0,1.23880611]
[1770449197078,1.23793018,2019.5,2017.8,1.23897313]
[1770449197293,1.23793018,2019.5,2017.8,1.29485806]
[1770449197894,1.23793018,2019.5,2017.8,1.23897313]
[1770449198111,0.64232212,2019.4,2017.9,0.61948657]
[1770449198484,0.2335703,2019.3,2017.9,0.61948657]
[1770449198692,0.64232212,2019.4,2017.9,0.61948657]
[1770449199106,1.23805279,2019.3,2018.0,1.23885034]
[1770449199298,1.23805279,2019.3,2017.9,0.61948657]
[1770449199491,1.23805279,2019.3,2017.9,1.85838882]
[1770449199492,0.68325861,2019.2,2017.9,1.85838882]
[1770449199689,0.68325861,2019.2,2018.0,0.001]
[1770449200580,1.23805279,2019.3,2018.0,0.001]
[1770449201207,5.59453328,2019.4,2018.0,0.05688493]
[1770449201208,1.23801257,2019.4,2018.0,0.05688493]
[1770449201407,1.23801257,2019.4,2018.2,0.6]
[1770449201906,2.04433348,2020.1,2018.2,0.6]
[1770449202228,7.65524195,2019.7,2018.2,0.6]
[1770449202401,0.2335703,2019.6,2018.0,0.001]
[1770449203206,1.23799148,2019.4,2018.0,0.001]
[1770449203783,1.23795594,2019.5,2018.0,0.001]
[1770449204385,0.2335703,2019.2,2018.0,0.001]
[1770449205184,1.23817542,2019.1,2018.0,0.001]
[1770449205426,0.64244474,2019.0,2018.0,0.001]
[1770449206092,7.94469718,2018.9,2018.0,0.001]
[1770449206508,7.88881225,2018.9,2018.0,0.001]
[1770449206706,0.2335703,2018.9,2018.0,0.001]
[1770449208120,1.23835942,2018.8,2018.0,0.001]
[1770449208330,2.44607067,2018.8,2018.0,0.001]
[1770449208903,0.2335703,2018.7,2018.0,0.001]
[1770449209111,2.44607067,2018.8,2018.0,0.001]
[1770449209625,1.23835942,2018.8,2018.0,0.001]
[1770449210122,4.9510414,2019.8,2018.1,1.23878895]
[1770449210322,0.1024,2019.7,2018.1,1.23878895]
[1770449210498,4.9510414,2019.8,2018.1,1.29467388]
[1770449210699,4.9510414,2019.8,2018.2,3.63681724]
[1770449210700,1.38440297,2019.7,2018.2,3.63681724]
[1770449211123,1.23772646,2019.9,2018.4,7.70260259]
[1770449211325,1.23958451,2020.1,2018.7,0.05588493]
[1770449211653,0.002,2020.3,2019.5,0.05588493]
[1770449211804,1.23682778,2021.3,2019.6,22.47062508]
[1770449211996,1.23680703,2021.4,2019.5,0.77026026]
[1770449212195,1.23680703,2021.4,2019.3,30.17322767]
[1770449212196,0.1024,2021.0,2019.3,30.17322767]
[1770449212391,7.65524195,2021.1,2019.3,30.17322767]
[1770449212625,0.1024,2021.0,2019.3,7.70260259]
[1770449213032,0.1024,2021.0,2019.2,1.2381141]
[1770449213220,0.1024,2021.0,2019.1,1.2381399]
[1770449213413,0.1024,2020.8,2019.1,1.2381399]
[1770449214316,7.65724195,2020.9,2019.6,7.70260259]
[1770449214317,0.002,2020.9,2019.6,7.70260259]
[1770449215031,0.002,2020.9,2019.9,0.05588493]
[1770449215730,0.002,2020.9,2020.0,7.64671766]
[1770449215926,0.002,2020.9,2020.1,0.77026026]
[1770449216308,0.002,2020.9,2020.4,1.23737873]
[1770449216832,0.002,2021.1,2020.5,0.05588493]
[1770449217404,0.002,2021.1,2020.4,1.23737873]
[1770449217603,0.002,2021.1,2020.3,1.23742479]
[1770449217843,0.002,2021.1,2020.3,1.93321809]
[1770449218004,0.002,2021.1,2020.5,0.05588493]
[1770449218207,0.002,2021.1,2020.5,7.70260259]
[1770449218402,0.002,2021.1,2020.6,1.23725626]
[1770449219404,0.002,2021.1,2020.8,0.05588493]
[1770449219752,0.33176412,2021.9,2020.9,7.70260259]
[1770449219932,0.002,2021.8,2021.0,0.92592466]
[1770449220133,0.33467167,2023.5,2021.7,0.05588493]
[1770449220332,0.33467167,2023.5,2021.7,7.70260259]
[1770449220536,1.57015553,2023.5,2022.1,1.23633846]
[1770449220709,0.65120252,2023.4,2022.2,2.87082023]
[1770449220913,0.65120252,2023.4,2022.3,0.05588493]
[1770449221111,0.65120252,2023.4,2022.2,2.87082023]
[1770449221112,0.33467167,2023.5,2022.2,2.87082023]
[1770449221310,4.93938908,2024.6,2023.6,0.05588493]
[1770449221512,4.93938908,2024.6,2023.0,0.05588493]
[1770449221513,7.65524195,2024.5,2023.0,0.05588493]
[1770449221734,7.65524195,2024.5,2023.3,0.05588493]
[1770449221943,1.2345679,2025.0,2023.9,0.05588493]
[1770449222141,1.2345679,2025.0,2023.0,0.05588493]
[1770449222142,22.47062508,2024.1,2022.5,0.05588493]
[1770449222442,0.1024,2024.2,2023.2,0.05588493]
[1770449222646,5.46558567,2024.9,2022.4,0.05588493]
[1770449222647,7.75764195,2024.5,2022.4,0.05588493]
[1770449222805,7.75764195,2024.0,2021.8,7.64671766]
[1770449223011,0.2335703,2023.9,2021.8,7.70260259]
[1770449223306,0.2335703,2023.9,2021.3,0.15828493]
[1770449223307,0.1024,2023.4,2021.9,0.05588493]
[1770449223554,0.1024,2023.4,2021.4,7.64671766]
[1770449223740,0.1024,2023.4,2020.9,0.05588493]
[1770449223741,0.1024,2023.0,2021.1,1.2369437]
[1770449223938,0.1024,2023.0,2020.1,0.82614519]
[1770449223939,0.1024,2022.3,2020.6,4.94884087]
[1770449224139,0.05588493,2022.7,2020.4,7.70260259]
[1770449224140,7.65524195,2023.9,2021.9,0.05588493]
[1770449224440,1.23499481,2024.3,2022.9,1.23584952]
[1770449224641,0.52700914,2024.9,2022.8,4.99930615]
[1770449224642,4.93890327,2024.8,2022.8,1.29179512]
[1770449224845,7.65524195,2024.7,2022.8,1.29179512]
[1770449225160,7.65524195,2024.7,2023.1,0.05588493]
[1770449225324,7.65524195,2024.7,2022.8,1.29179512]
[1770449225325,22.47062508,2024.6,2022.8,0.05588493]
[1770449225519,22.47062508,2024.6,2022.2,7.64671766]
[1770449225520,0.05588493,2024.3,2022.2,7.64671766]
[1770449225720,3.0125867,2024.5,2022.2,7.64671766]
[1770449225933,0.002,2023.2,2022.7,1.23593228]
[1770449226134,0.002,2023.2,2022.3,0.05588493]
[1770449226342,0.002,2023.2,2022.6,1.23600154]
[1770449226660,3.06847163,2024.5,2022.9,0.05588493]
[1770449226661,0.002,2023.4,2022.9,0.05588493]
[1770449226823,0.002,2023.4,2022.6,23.14454773]
[1770449226824,0.99231237,2024.2,2022.6,0.67392265]
[1770449227027,4.94022329,2024.3,2022.9,0.05588493]
[1770449227028,0.002,2024.3,2022.9,0.05588493]
[1770449227224,0.002,2024.3,2023.6,0.05588493]
[1770449227423,0.002,2024.3,2022.9,0.05588493]
[1770449227649,7.57784216,2024.3,2022.3,0.05588493]
[1770449227825,7.80941246,2023.8,2021.7,1.2365438]
[1770449228026,0.2335703,2023.0,2021.5,0.05588493]
[1770449228259,0.1024,2022.6,2020.8,1.23711548]
[1770449228465,0.1024,2022.6,2020.7,8.11117996]
[1770449228466,0.1024,2022.4,2021.0,1.29285957]
[1770449228625,0.3359703,2021.9,2020.4,0.05588493]
[1770449228830,0.3359703,2021.9,2021.0,1.29287513]
[1770449228831,2.30401657,2021.9,2021.0,1.29287513]
[1770449229056,0.1024,2022.3,2021.0,0.05588493]
[1770449229367,0.2335703,2022.2,2020.6,4.94902314]
[1770449229530,0.2335703,2022.2,2020.4,2.29767288]
[1770449229870,0.2335703,2022.2,2020.5,1.23727918]
[1770449230074,0.2335703,2022.2,2020.8,1.23709963]
[1770449230373,0.1024,2022.1,2020.6,1.23721581]
[1770449230577,3.05861827,2022.2,2020.9,0.05588493]
[1770449230730,1.23631886,2022.2,2021.2,0.05588493]
[1770449231036,1.23615506,2022.4,2021.2,0.05588493]
[1770449231548,1.23612518,2022.5,2021.2,0.05588493]
[1770449231754,1.3383922,2022.7,2021.2,0.05588493]
[1770449231947,1.33838281,2022.7,2021.5,0.05588493]
[1770449232278,1.23599679,2022.7,2021.6,0.05588493]
[1770449232427,0.1024,2023.1,2021.7,0.05588493]
[1770449232626,1.23578843,2023.0,2021.4,1.23676659]
[1770449232827,1.23578843,2023.0,2021.6,0.05588493]
[1770449233029,0.1024,2022.9,2021.6,0.05588493]
[1770449233264,0.73053422,2022.9,2021.6,0.05588493]
[1770449233448,0.2335703,2022.8,2021.3,1.23682384]
[1770449233648,0.62813422,2022.9,2021.4,0.05588493]
[1770449233959,1.23557134,2023.4,2022.0,0.05588493]
[1770449234257,4.94150467,2023.7,2022.3,0.05588493]
[1770449234477,7.88198734,2023.4,2021.4,7.42730388]
[1770449234657,0.2335703,2022.7,2021.0,1.29288854]
[1770449234830,0.3359703,2022.7,2021.0,1.29288854]
[1770449235030,0.1024,2022.7,2021.0,1.29288854]
[1770449235361,0.1024,2022.7,2021.1,0.62411382]
[1770449235362,0.2335703,2022.6,2021.1,0.62411382]
[1770449235654,0.62819531,2022.7,2021.5,0.05588493]
[1770449235854,0.1024,2022.8,2021.5,0.05588493]
[1770449236059,0.1024,2023.3,2021.8,0.05588493]
[1770449236566,1.3956453,2023.6,2022.1,1.23633846]
[1770449236772,9.01473303,2024.1,2022.2,0.62375772]
[1770449236937,0.2335703,2022.7,2021.7,0.7]
[1770449237263,0.2335703,2022.5,2020.8,1.23708767]
[1770449237456,0.1024,2022.6,2021.1,1.23689329]
[1770449237642,0.1024,2022.6,2021.0,1.29284287]
[1770449237843,0.1024,2022.6,2021.0,0.05588493]
[1770449238044,0.1024,2022.6,2021.1,1.23689758]
[1770449238238,7.88198734,2022.8,2020.6,0.05588493]
[1770449238438,0.1024,2022.6,2021.1,1.23691794]
[1770449238667,1.23609394,2022.5,2021.0,4.94800648]
[1770449238964,1.23609394,2022.5,2021.2,0.001]
[1770449239987,0.3359703,2022.4,2021.2,0.001]
[1770449240276,0.3359703,2022.2,2021.2,0.001]
[1770449240445,8.11555764,2021.9,2019.9,0.05588493]
[1770449240646,0.2335703,2021.3,2019.6,0.05588493]
[1770449240851,0.1024,2020.7,2019.3,0.001]
[1770449241053,0.1024,2020.3,2019.3,0.001]
[1770449241376,0.1024,2020.3,2018.4,0.001]
[1770449241377,0.2335703,2020.0,2018.4,0.001]
[1770449241552,8.90954386,2020.0,2018.4,0.001]
[1770449241879,0.1024,2019.9,2018.4,1.23958837]
[1770449242045,8.01315764,2020.3,2018.4,1.2954733]
[1770449242235,22.47062508,2020.5,2018.4,1.2954733]
[1770449242236,7.77958734,2020.8,2018.7,0.05588493]
[1770449242568,7.88198734,2021.2,2019.3,0.05588493]
[1770449242778,12.05738724,2021.1,2019.3,0.05588493]
[1770449242940,0.2335703,2020.8,2019.3,0.05588493]
[1770449243135,0.1024,2020.7,2019.0,0.05588493]
[1770449243359,0.1024,2020.7,2019.2,1.23806754]
[1770449243670,12.05738724,2021.1,2019.2,1.23806754]
[1770449243671,0.1024,2021.0,2019.3,8.72123269]
[1770449243841,1.23691922,2021.2,2019.7,0.05588493]
[1770449244373,1.23691922,2021.2,2019.4,1.36734439]
[1770449244742,0.1024,2021.2,2019.6,0.05588493]
[1770449244940,1.23664424,2021.6,2020.0,0.05588493]
[1770449245154,0.1024,2021.5,2020.0,0.05588493]
[1770449245349,1.23664424,2021.6,2020.3,0.05588493]
[1770449245777,1.23633846,2022.1,2020.3,0.05588493]
[1770449246067,0.1024,2022.0,2020.6,0.05588493]
[1770449246642,1.23609394,2022.5,2020.3,0.05588493]
[1770449246846,30.25021242,2022.2,2020.4,1.23736876]
[1770449247164,3.12742124,2022.1,2020.5,1.23728304]
[1770449247343,0.2335703,2022.0,2020.5,1.23728304]
[1770449247543,0.2335703,2022.0,2020.5,1.23727849]
[1770449247740,0.2335703,2022.0,2020.0,0.05588493]
[1770449247741,0.3359703,2021.7,2020.0,0.05588493]
[1770449248056,7.77958734,2022.0,2020.2,0.05588493]
[1770449248244,0.1024,2021.9,2020.3,1.23740177]
[1770449248443,0.1024,2021.9,2020.2,0.55649642]
[1770449248645,0.1024,2021.9,2020.6,1.2372506]
[1770449248861,1.23621528,2022.4,2020.8,0.05588493]
[1770449249171,0.1024,2022.3,2020.8,0.05588493]
[1770449249373,0.1024,2022.1,2020.8,0.05588493]
[1770449249550,0.1024,2022.1,2020.5,1.29320066]
[1770449250349,0.62832213,2022.3,2020.8,0.05588493]
[1770449251066,1.23627732,2022.2,2021.1,0.05588493]
[1770449251376,1.33852068,2022.5,2021.1,0.05588493]
[1770449251673,0.628268,2022.4,2021.1,0.05588493]
[1770449251978,30.25221242,2021.9,2020.2,0.50061149]
[1770449252274,30.25221242,2021.9,2019.7,7.42730388]
[1770449252275,0.1024,2021.4,2019.7,7.42730388]
[1770449252475,5.237,2021.8,2019.4,1.36734439]
[1770449252476,7.83547227,2021.8,2019.4,1.36734439]
[1770449252646,7.88198734,2021.2,2019.4,1.23794135]
[1770449252841,7.88198734,2021.2,2019.2,0.001]
[1770449252842,0.1024,2020.8,2019.2,0.001]
[1770449253078,1.23719503,2020.7,2019.2,0.001]
[1770449253246,0.3359703,2020.6,2019.2,0.001]
[1770449253449,8.11555764,2020.6,2019.2,0.001]
[1770449253682,0.1024,2020.4,2019.2,0.001]
[1770449254979,1.23688897,2021.2,2020.0,0.05588493]
[1770449255184,35.19669283,2021.7,2020.0,0.05588493]
[1770449255185,0.1024,2021.1,2020.0,0.05588493]
[1770449255478,5.4705703,2021.5,2020.0,0.05588493]
[1770449255654,0.1024,2021.5,2020.0,1.29345867]
[1770449255988,3.65357371,2021.5,2020.1,0.62439537]
[1770449256174,0.1024,2021.4,2020.1,0.62439537]
[1770449256359,1.23661983,2021.7,2020.3,0.05588493]
[1770449256546,1.23657561,2021.8,2020.3,0.05588493]
[1770449256880,4.9479138,2021.9,2020.3,0.05588493]
[1770449256881,1.23846379,2021.9,2020.6,0.05588493]
[1770449257197,0.002,2021.9,2021.0,1.29285464]
[1770449257487,0.002,2021.9,2021.3,0.05588493]
[1770449258557,0.002,2021.9,2020.7,12.50967002]
[1770449258558,0.002,2021.9,2020.3,0.05588493]
[1770449258872,0.002,2021.9,2020.6,0.05588493]
[1770449259051,0.002,2021.9,2020.9,0.05588493]
[1770449259247,0.002,2021.9,2020.6,5.00472299]
[1770449259470,0.002,2021.9,2020.6,1.29310427]
[1770449259796,0.002,2021.9,2020.7,1.23719435]
[1770449260283,0.002,2021.9,2020.3,1.37506678]
[1770449260459,0.3359703,2021.6,2020.1,1.86191442]
[1770449260976,0.3359703,2021.6,2020.2,1.23749603]
[1770449261389,1.23670541,2021.5,2020.1,1.86192702]
[1770449261701,0.3359703,2021.4,2020.1,0.62439537]
[1770449261872,2.8946279,2021.4,2019.6,7.61750943]
[1770449262074,0.1024,2022.5,2020.8,0.05588493]
[1770449262275,30.12512188,2021.9,2020.0,0.70697232]
[1770449262498,3.01810068,2021.8,2020.2,1.29338616]
[1770449262809,0.1024,2021.8,2020.5,0.05588493]
[1770449263303,0.3359703,2021.9,2020.2,1.29338616]
[1770449263677,0.05588493,2021.8,2019.7,27.43377579]
[1770449263879,0.1024,2021.6,2019.8,4.95092847]
[1770449264200,1.2363996,2022.0,2020.4,0.05588493]
[1770449264393,2.34915924,2022.0,2020.4,0.05588493]
[1770449264593,0.1024,2022.0,2020.4,0.05588493]
[1770449265107,1.23615506,2022.4,2021.0,0.05588493]
[1770449265283,1.23591061,2022.8,2021.0,0.05588493]
[1770449265485,1.23591061,2022.8,2021.1,1.23695017]
[1770449265486,0.1024,2022.7,2021.1,1.23695017]
[1770449265874,0.002,2021.7,2021.1,1.23695017]
[1770449266073,0.002,2021.7,2021.6,0.05588493]
[1770449266389,1.23554413,2023.4,2021.6,0.05588493]
[1770449266586,0.002,2021.9,2021.6,0.05588493]
[1770449266907,1.23053592,2023.5,2021.7,0.05588493]
[1770449267204,4.94109412,2023.9,2022.0,0.05588493]
[1770449267407,1.23536097,2023.7,2022.1,1.23633846]
[1770449267906,6.32891121,2023.8,2022.4,0.05588493]
[1770449267907,2.62278741,2023.8,2022.4,0.05588493]
[1770449268107,1.23532008,2023.8,2022.4,0.05588493]
[1770449268407,4.93975629,2024.4,2022.8,0.05588493]
[1770449268408,1.2349338,2024.4,2022.8,0.05588493]
[1770449268786,22.42678163,2024.1,2022.2,0.05588493]
[1770449268987,8.93327405,2024.4,2022.5,0.05588493]
[1770449269190,30.12512188,2024.3,2022.1,1.23633846]
[1770449269501,1.23536097,2023.7,2022.2,1.43021661]
[1770449269678,0.2335703,2023.6,2022.2,1.37433168]
[1770449270411,0.2335703,2023.6,2022.1,1.23633684]
[1770449270786,0.2335703,2023.6,2022.0,1.23635103]
[1770449270984,0.2335703,2023.6,2022.1,1.23633316]
[1770449271380,1.23548307,2023.5,2022.0,1.2363996]
[1770449271614,22.42678163,2023.9,2022.0,1.2363996]
[1770449271615,1.23481181,2024.6,2023.0,0.05588493]
[1770449271777,8.93313094,2024.7,2023.0,0.05588493]
[1770449271982,8.93313094,2024.7,2022.7,7.5616245]
[1770449271983,0.1024,2024.5,2022.7,0.05588493]
[1770449272199,0.05588493,2024.5,2022.7,0.05588493]
[1770449272517,0.1024,2024.0,2022.3,7.5616245]
[1770449272687,0.3359703,2023.7,2021.9,1.29230392]
[1770449272891,0.3359703,2023.7,2022.0,1.37997714]
[1770449273311,0.3359703,2023.7,2022.2,0.05588493]
[1770449273811,30.46109218,2023.5,2022.0,1.37997714]
[1770449274020,30.46109218,2023.5,2021.4,0.05588493]
[1770449274021,22.42678163,2023.1,2021.5,1.23669799]
[1770449274219,0.2335703,2023.0,2021.7,0.05588493]
[1770449274385,0.1024,2023.2,2021.7,1.29245106]
[1770449274718,0.2335703,2023.3,2022.1,1.23632151]
[1770449274923,0.1024,2023.5,2022.2,1.2362647]
[1770449275091,0.1024,2023.5,2022.3,0.6181374]
[1770449275285,1.23542202,2023.6,2022.3,0.6181374]
[1770449275490,1.23499481,2024.3,2022.6,22.48266656]
[1770449275791,1.23499481,2024.3,2022.3,1.8543105]
[1770449275792,8.93333506,2024.3,2022.3,1.8543105]
[1770449276006,7.80074025,2024.0,2022.1,1.29218495]
[1770449276210,0.2335703,2023.9,2022.2,1.23623625]
[1770449276412,0.2335703,2023.9,2022.3,1.23618121]
[1770449276627,7.80074025,2024.0,2022.6,1.23602685]
[1770449276831,1.23499481,2024.3,2022.7,0.05588493]
[1770449277124,1.23499481,2024.3,2022.7,0.67948924]
[1770449277685,1.2349338,2024.4,2023.0,0.05588493]
[1770449277884,1.2349338,2024.4,2022.9,0.05588493]
[1770449278221,1.2349338,2024.4,2023.2,0.05588493]
[1770449278642,1.56563615,2025.1,2023.6,7.5616245]
[1770449278918,1.56563615,2025.1,2023.7,0.76175094]
[1770449278919,0.002,2024.2,2023.7,0.76175094]
[1770449279221,0.002,2024.2,2023.8,0.05588493]
[1770449279424,0.33108809,2025.1,2024.1,0.05588493]
[1770449279586,4.93608314,2025.9,2024.1,0.05588493]
[1770449279587,1.23401944,2025.9,2024.1,1.29094208]
[1770449279789,1.23401944,2025.9,2024.4,0.05588493]
[1770449280101,1.23401944,2025.9,2023.9,1.23520055]
[1770449280102,7.69834025,2025.4,2023.9,1.23520055]
[1770449280411,0.1024,2025.3,2023.4,0.05588493]
[1770449280603,0.2335703,2024.8,2023.0,0.05588493]
[1770449280804,0.2335703,2024.6,2023.0,1.29166802]
[1770449281003,0.2335703,2024.6,2023.1,1.23572506]
[1770449281211,7.69834025,2024.8,2023.3,0.05588493]
[1770449281407,22.42678163,2024.9,2023.3,0.05588493]
[1770449281408,0.2335703,2025.1,2023.6,0.05588493]
[1770449281609,1.23444598,2025.2,2023.6,0.05588493]
[1770449281791,1.23444598,2025.2,2023.9,0.05588493]
[1770449281992,1.23444598,2025.2,2023.8,0.05588493]
[1770449282192,4.93680884,2025.7,2024.1,0.05588493]
[1770449282500,4.93680884,2025.7,2024.5,0.05588493]
[1770449282702,4.93680884,2025.7,2023.8,0.67915391]
[1770449282703,0.1024,2025.6,2023.8,0.67915391]
[1770449282898,7.80074025,2025.6,2023.8,0.67915391]
[1770449283218,7.80074025,2025.3,2023.8,0.62326898]
[1770449283418,0.2335703,2025.1,2023.6,1.29128315]
[1770449283627,1.2345679,2025.0,2023.6,0.05588493]
[1770449283828,0.2335703,2024.9,2023.4,1.23550633]
[1770449284030,0.2335703,2024.9,2023.4,1.23550113]
[1770449284232,0.2335703,2024.7,2023.2,0.62347236]
[1770449284404,0.2335703,2024.7,2023.4,1.2354964]
[1770449284727,0.2335703,2024.7,2023.3,0.05588493]
[1770449285229,0.2335703,2024.3,2022.7,0.62360431]
[1770449285434,0.2335703,2024.3,2022.7,4.94388522]
[1770449285609,1.23517786,2024.0,2022.6,1.23603282]
[1770449285803,1.23517786,2024.0,2022.5,1.2360522]
[1770449286001,1.23514632,2024.1,2022.9,0.05588493]
[1770449286532,0.2335703,2024.0,2022.4,1.29299887]
[1770449286702,1.64900125,2024.0,2022.5,1.85986644]
[1770449286902,22.42678163,2023.5,2022.4,0.001]
[1770449287103,0.2335703,2023.4,2022.4,0.001]
[1770449287405,0.2335703,2023.6,2022.4,0.001]
[1770449287806,0.2335703,2023.4,2022.4,0.001]
[1770449289813,1.23560519,2023.3,2022.4,0.001]
[1770449290121,0.6178026,2023.2,2022.4,0.001]
[1770449291032,0.1024,2023.7,2022.5,7.27472474]
[1770449291235,1.23527693,2023.9,2022.5,7.27472474]
[1770449291743,4.94061104,2024.1,2022.6,1.23703282]